[Event "*** Titled Tuesday Blitz"]
[Site "Chess.com"]
[Date "2021.03.02"]
[Round "3"]
[White "manitodeplomo"]
[Black "baki83"]
[Result "0-1"]
[WhiteElo "2607"]
[BlackElo "2810"]
[TimeControl "180+1"]
[EndTime "10:27:42 PST"]
[Termination "baki83 won on time"]

1. d4 {[%clk 0:03:00]} 1... d5 {[%clk 0:02:59.5]} 2. c4 {[%clk 0:02:55.1]} 2...
e6 {[%clk 0:02:59.3]} 3. Nf3 {[%clk 0:02:53.7]} 3... Nf6 {[%clk 0:02:58.8]} 4.
Nc3 {[%clk 0:02:53.7]} 4... Be7 {[%clk 0:02:58.5]} 5. Bg5 {[%clk 0:02:53.2]}
5... h6 {[%clk 0:02:57.8]} 6. Bxf6 {[%clk 0:02:51.7]} 6... Bxf6 {[%clk
0:02:58.7]} 7. Qc2 {[%clk 0:02:51.6]} 7... O-O {[%clk 0:02:57.5]} 8. O-O-O
{[%clk 0:02:43.2]} 8... b6 {[%clk 0:02:43.4]} 9. e4 {[%clk 0:02:41.4]} 9... Bb7
{[%clk 0:02:43.5]} 10. h4 {[%clk 0:02:27.8]} 10... dxe4 {[%clk 0:02:27.3]} 11.
Nxe4 {[%clk 0:02:26.9]} 11... Nc6 {[%clk 0:02:27.5]} 12. Rh3 {[%clk 0:02:01]}
12... Bxd4 {[%clk 0:01:44.8]} 13. c5 {[%clk 0:01:24.9]} 13... Nb4 {[%clk
0:01:36.1]} 14. Qb3 {[%clk 0:01:02.5]} 14... bxc5 {[%clk 0:01:06.1]} 15. Nxc5
{[%clk 0:00:44.5]} 15... Bxc5 {[%clk 0:00:43.4]} 16. Rxd8 {[%clk 0:00:43.2]}
16... Rfxd8 {[%clk 0:00:42.5]} 17. Bc4 {[%clk 0:00:20.5]} 17... Rab8 {[%clk
0:00:34.7]} 18. Qc3 {[%clk 0:00:19.4]} 18... Bxf3 {[%clk 0:00:22.6]} 19. Rxf3
{[%clk 0:00:17.1]} 19... Bd4 {[%clk 0:00:23]} 20. Qa3 {[%clk 0:00:02.4]} 20...
a5 {[%clk 0:00:22.3]} 0-1

[Event "*** Titled Tuesday Blitz"]
[Site "Chess.com"]
[Date "2021.03.02"]
[Round "3"]
[White "Na_binci"]
[Black "Loy_Konstantin"]
[Result "0-1"]
[WhiteElo "2136"]
[BlackElo "2350"]
[TimeControl "180+1"]
[EndTime "10:27:45 PST"]
[Termination "Loy_Konstantin won by resignation"]

1. d4 {[%clk 0:03:00.9]} 1... Nf6 {[%clk 0:02:56.6]} 2. c4 {[%clk 0:03:01.2]}
2... c5 {[%clk 0:02:52.8]} 3. d5 {[%clk 0:03:00.9]} 3... b5 {[%clk 0:02:50.7]}
4. cxb5 {[%clk 0:03:01.4]} 4... a6 {[%clk 0:02:50.8]} 5. bxa6 {[%clk 0:03:02.2]}
5... Bxa6 {[%clk 0:02:51.7]} 6. Nc3 {[%clk 0:03:02.6]} 6... g6 {[%clk
0:02:51.2]} 7. e4 {[%clk 0:03:03.5]} 7... Bxf1 {[%clk 0:02:50.6]} 8. Kxf1 {[%clk
0:03:04.4]} 8... d6 {[%clk 0:02:51.1]} 9. g4 {[%clk 0:03:04.4]} 9... Bg7 {[%clk
0:02:49.9]} 10. Kg2 {[%clk 0:03:03.1]} 10... Nbd7 {[%clk 0:02:48.9]} 11. g5
{[%clk 0:03:01.8]} 11... Nh5 {[%clk 0:02:45.8]} 12. Nge2 {[%clk 0:03:02.2]}
12... Ra6 {[%clk 0:02:28.6]} 13. Ng3 {[%clk 0:03:01]} 13... Nxg3 {[%clk
0:02:27.8]} 14. hxg3 {[%clk 0:03:01.9]} 14... Qa8 {[%clk 0:02:26.9]} 15. a4
{[%clk 0:02:54.9]} 15... e6 {[%clk 0:02:20.2]} 16. Nb5 {[%clk 0:02:25.4]} 16...
Qb7 {[%clk 0:02:09.3]} 17. dxe6 {[%clk 0:02:25.2]} 17... fxe6 {[%clk 0:01:15.3]}
18. Nxd6+ {[%clk 0:02:17.4]} 18... Rxd6 {[%clk 0:01:15.6]} 19. Qxd6 {[%clk
0:02:17.6]} 19... Qxe4+ {[%clk 0:01:16.1]} 20. f3 {[%clk 0:02:08.4]} 20... Qe2+
{[%clk 0:01:14.7]} 21. Kg1 {[%clk 0:01:43.3]} 21... Bd4+ {[%clk 0:01:08.2]} 22.
Qxd4 {[%clk 0:01:41]} 22... cxd4 {[%clk 0:01:07]} 23. Bf4 {[%clk 0:01:33.8]}
23... Qxb2 {[%clk 0:00:59.8]} 24. Re1 {[%clk 0:01:31.9]} 24... O-O {[%clk
0:00:59.1]} 25. Rxe6 {[%clk 0:01:30]} 25... d3 {[%clk 0:00:54.6]} 26. Rd6 {[%clk
0:01:24.3]} 26... Nc5 {[%clk 0:00:51.3]} 27. Rh2 {[%clk 0:01:16.8]} 27... Qb1+
{[%clk 0:00:49.1]} 28. Kg2 {[%clk 0:01:16.9]} 28... Qa2+ {[%clk 0:00:45.2]} 29.
Kh3 {[%clk 0:01:15.5]} 29... Qxa4 {[%clk 0:00:45.6]} 30. Be5 {[%clk 0:01:03.9]}
30... Rxf3 {[%clk 0:00:40.4]} 31. Rd8+ {[%clk 0:01:02.2]} 31... Kf7 {[%clk
0:00:39.9]} 32. Rh8 {[%clk 0:01:02.1]} 32... Ke6 {[%clk 0:00:31.3]} 33. Bf6
{[%clk 0:01:00.3]} 33... Ne4 {[%clk 0:00:16.8]} 34. Rb2 {[%clk 0:00:52.8]} 34...
Nxf6 {[%clk 0:00:16.2]} 35. Rb6+ {[%clk 0:00:50.3]} 35... Ke5 {[%clk 0:00:15]}
36. gxf6 {[%clk 0:00:50.5]} 36... Rxf6 {[%clk 0:00:13.4]} 37. Re8+ {[%clk
0:00:50.3]} 37... Qxe8 {[%clk 0:00:13]} 0-1

[Event "*** Titled Tuesday Blitz"]
[Site "Chess.com"]
[Date "2021.03.02"]
[Round "3"]
[White "WonderChampion"]
[Black "Chernov_Mikhail"]
[Result "0-1"]
[WhiteElo "2091"]
[BlackElo "2343"]
[TimeControl "180+1"]
[EndTime "10:27:46 PST"]
[Termination "Chernov_Mikhail won by resignation"]

1. d4 {[%clk 0:03:00.9]} 1... d5 {[%clk 0:02:58.9]} 2. Bg5 {[%clk 0:02:59.1]}
2... c5 {[%clk 0:02:52.6]} 3. dxc5 {[%clk 0:02:56.2]} 3... Nc6 {[%clk
0:02:50.4]} 4. Nf3 {[%clk 0:02:54]} 4... h6 {[%clk 0:02:42.6]} 5. Bf4 {[%clk
0:02:51.7]} 5... Qa5+ {[%clk 0:02:33.4]} 6. c3 {[%clk 0:02:42.3]} 6... Qxc5
{[%clk 0:02:34.3]} 7. e3 {[%clk 0:02:36]} 7... Nf6 {[%clk 0:02:29.8]} 8. Bd3
{[%clk 0:02:32.7]} 8... Bg4 {[%clk 0:02:27.1]} 9. O-O {[%clk 0:02:29.7]} 9... e5
{[%clk 0:02:26.4]} 10. Bxe5 {[%clk 0:02:16.8]} 10... Nxe5 {[%clk 0:02:25.4]} 11.
Qa4+ {[%clk 0:02:16.7]} 11... Bd7 {[%clk 0:02:19.7]} 12. Qd4 {[%clk 0:02:06.8]}
12... Nxf3+ {[%clk 0:02:18.3]} 13. gxf3 {[%clk 0:02:07.7]} 13... Qxd4 {[%clk
0:02:18.8]} 14. exd4 {[%clk 0:02:08.6]} 14... Bh3 {[%clk 0:02:08.4]} 15. Re1+
{[%clk 0:02:06.5]} 15... Kd7 {[%clk 0:02:09.3]} 16. Nd2 {[%clk 0:02:03.3]} 16...
Bd6 {[%clk 0:02:05.5]} 17. c4 {[%clk 0:02:00.4]} 17... Rhe8 {[%clk 0:01:56.7]}
18. c5 {[%clk 0:01:59.3]} 18... Rxe1+ {[%clk 0:01:56.6]} 19. Rxe1 {[%clk
0:01:59.3]} 19... Bf4 {[%clk 0:01:56.8]} 20. Nb3 {[%clk 0:01:58]} 20... a6
{[%clk 0:01:48.2]} 21. Na5 {[%clk 0:01:54.6]} 21... Rb8 {[%clk 0:01:37.4]} 22.
Re2 {[%clk 0:01:50.1]} 22... Bc7 {[%clk 0:01:30.3]} 23. Nb3 {[%clk 0:01:43.4]}
23... Re8 {[%clk 0:01:22.3]} 24. Rxe8 {[%clk 0:01:32.1]} 24... Nxe8 {[%clk
0:01:15.7]} 25. Nd2 {[%clk 0:01:21.2]} 25... g6 {[%clk 0:01:15.4]} 26. Bc2
{[%clk 0:01:17.9]} 26... Ng7 {[%clk 0:01:12.7]} 27. Bb3 {[%clk 0:01:16.4]} 27...
Ke6 {[%clk 0:01:09.2]} 28. f4 {[%clk 0:01:01.9]} 28... Bxf4 {[%clk 0:01:05]} 29.
Nf3 {[%clk 0:01:00.7]} 29... Nf5 {[%clk 0:01:03.4]} 30. Bc2 {[%clk 0:00:44]}
30... Bc1 {[%clk 0:00:58.7]} 31. b4 {[%clk 0:00:41.5]} 31... Bb2 {[%clk
0:00:55.7]} 32. Bxf5+ {[%clk 0:00:38.1]} 32... Bxf5 {[%clk 0:00:55.6]} 33. a4
{[%clk 0:00:37.4]} 33... Be4 {[%clk 0:00:54.9]} 34. Nd2 {[%clk 0:00:35]} 34...
Bxd4 {[%clk 0:00:54.5]} 35. b5 {[%clk 0:00:35.2]} 35... Bxc5 {[%clk 0:00:50.6]}
36. bxa6 {[%clk 0:00:34.7]} 36... bxa6 {[%clk 0:00:51.5]} 37. Nb3 {[%clk
0:00:35.5]} 37... Bb6 {[%clk 0:00:50.9]} 38. a5 {[%clk 0:00:34.7]} 38... Ba7
{[%clk 0:00:51.4]} 39. Nd2 {[%clk 0:00:33.7]} 39... Ke5 {[%clk 0:00:50.6]} 40.
Kf1 {[%clk 0:00:32.4]} 40... Kd4 {[%clk 0:00:50]} 0-1

[Event "*** Titled Tuesday Blitz"]
[Site "Chess.com"]
[Date "2021.03.02"]
[Round "3"]
[White "northridgehawk"]
[Black "AttilaTurzo"]
[Result "0-1"]
[WhiteElo "2350"]
[BlackElo "2543"]
[TimeControl "180+1"]
[EndTime "10:27:48 PST"]
[Termination "AttilaTurzo won by resignation"]

1. e4 {[%clk 0:03:00.9]} 1... c5 {[%clk 0:02:58.7]} 2. Nf3 {[%clk 0:02:58.8]}
2... d6 {[%clk 0:02:57.3]} 3. d4 {[%clk 0:02:58.8]} 3... cxd4 {[%clk 0:02:58.2]}
4. Nxd4 {[%clk 0:02:59.3]} 4... Nf6 {[%clk 0:02:58.6]} 5. Nc3 {[%clk 0:02:59.8]}
5... Nc6 {[%clk 0:02:58.6]} 6. f3 {[%clk 0:02:59.3]} 6... e5 {[%clk 0:02:57.7]}
7. Nb3 {[%clk 0:02:59.2]} 7... Be7 {[%clk 0:02:55.1]} 8. Be3 {[%clk 0:02:59.7]}
8... a5 {[%clk 0:02:53.4]} 9. Bb5 {[%clk 0:02:58.8]} 9... O-O {[%clk 0:02:52.4]}
10. Qd2 {[%clk 0:02:59.2]} 10... Be6 {[%clk 0:02:52.7]} 11. O-O-O {[%clk
0:02:58.5]} 11... Qc7 {[%clk 0:02:49]} 12. Kb1 {[%clk 0:02:53.4]} 12... Rfd8
{[%clk 0:02:47.9]} 13. Nd5 {[%clk 0:02:50.5]} 13... Bxd5 {[%clk 0:02:43.7]} 14.
exd5 {[%clk 0:02:51.4]} 14... Nb4 {[%clk 0:02:43.7]} 15. c4 {[%clk 0:02:48.4]}
15... b6 {[%clk 0:02:35.4]} 16. a3 {[%clk 0:02:47.6]} 16... Na6 {[%clk
0:02:35.4]} 17. Bc6 {[%clk 0:02:37.1]} 17... Rab8 {[%clk 0:02:32.5]} 18. g4
{[%clk 0:02:37.4]} 18... Nd7 {[%clk 0:02:31.5]} 19. h4 {[%clk 0:02:36.4]} 19...
Nac5 {[%clk 0:02:29]} 20. Nxc5 {[%clk 0:02:34.4]} 20... bxc5 {[%clk 0:02:09.9]}
21. h5 {[%clk 0:02:33.9]} 21... Qb6 {[%clk 0:01:59.5]} 22. Bb5 {[%clk
0:02:31.2]} 22... Qc7 {[%clk 0:01:38.6]} 23. g5 {[%clk 0:02:31.1]} 23... Rf8
{[%clk 0:01:37.7]} 24. Rhg1 {[%clk 0:02:28]} 24... Kh8 {[%clk 0:01:35.9]} 25.
Qd3 {[%clk 0:02:25.6]} 25... f5 {[%clk 0:01:34.9]} 26. gxf6 {[%clk 0:02:23.8]}
26... Nxf6 {[%clk 0:01:31.8]} 27. h6 {[%clk 0:02:20.3]} 27... g6 {[%clk
0:01:26.8]} 28. f4 {[%clk 0:02:14.4]} 28... exf4 {[%clk 0:01:20.9]} 29. Bxf4
{[%clk 0:02:15.3]} 29... Nh5 {[%clk 0:01:18.4]} 30. Bd2 {[%clk 0:02:13.2]} 30...
Bf6 {[%clk 0:01:17.6]} 31. Rdf1 {[%clk 0:02:08]} 31... Bd4 {[%clk 0:01:08.3]}
32. Rg4 {[%clk 0:02:04.4]} 32... Be5 {[%clk 0:00:55.7]} 33. Re1 {[%clk
0:01:54.7]} 33... Bf6 {[%clk 0:00:38.3]} 34. Re6 {[%clk 0:01:53.4]} 34... Rf7
{[%clk 0:00:33.4]} 35. Rxg6 {[%clk 0:01:42.7]} 35... hxg6 {[%clk 0:00:30.9]} 36.
Qxg6 {[%clk 0:01:43.6]} 36... Rg8 {[%clk 0:00:17.1]} 37. Qxh5 {[%clk 0:01:42.5]}
37... Rg1+ {[%clk 0:00:14]} 38. Ka2 {[%clk 0:01:38.7]} 38... Rf8 {[%clk
0:00:11.1]} 39. Qh2 {[%clk 0:01:22.3]} 39... Rg6 {[%clk 0:00:08.5]} 40. Be8
{[%clk 0:01:20]} 40... Rg4 {[%clk 0:00:05.1]} 41. Qg2 {[%clk 0:01:16.6]} 41...
Rxg2 {[%clk 0:00:04.5]} 42. Bf4 {[%clk 0:01:08.1]} 42... Rxb2+ {[%clk
0:00:04.4]} 43. Ka1 {[%clk 0:01:07.8]} 43... Re2+ {[%clk 0:00:03.1]} 0-1

[Event "*** Titled Tuesday Blitz"]
[Site "Chess.com"]
[Date "2021.03.02"]
[Round "3"]
[White "hermionegrangermagic"]
[Black "LileKoridze"]
[Result "1-0"]
[WhiteElo "2603"]
[BlackElo "2407"]
[TimeControl "180+1"]
[EndTime "10:27:51 PST"]
[Termination "hermionegrangermagic won by resignation"]

1. e4 {[%clk 0:02:52]} 1... c5 {[%clk 0:02:59.6]} 2. Nf3 {[%clk 0:02:51.4]} 2...
d6 {[%clk 0:03:00.1]} 3. d4 {[%clk 0:02:50.9]} 3... cxd4 {[%clk 0:03:00.6]} 4.
Nxd4 {[%clk 0:02:51.8]} 4... Nf6 {[%clk 0:03:01.1]} 5. Nc3 {[%clk 0:02:52.2]}
5... Nc6 {[%clk 0:03:01.6]} 6. Bg5 {[%clk 0:02:51.7]} 6... e6 {[%clk 0:03:01.5]}
7. Qd2 {[%clk 0:02:50.9]} 7... a6 {[%clk 0:03:02]} 8. O-O-O {[%clk 0:02:51.1]}
8... Bd7 {[%clk 0:03:02.5]} 9. f3 {[%clk 0:02:48.6]} 9... Be7 {[%clk 0:02:51.1]}
10. Be3 {[%clk 0:02:47.9]} 10... O-O {[%clk 0:02:48.3]} 11. g4 {[%clk
0:02:47.5]} 11... Rc8 {[%clk 0:02:39.7]} 12. h4 {[%clk 0:02:46.1]} 12... Ne5
{[%clk 0:02:36.9]} 13. h5 {[%clk 0:02:45.9]} 13... h6 {[%clk 0:02:35.5]} 14. g5
{[%clk 0:02:38.5]} 14... hxg5 {[%clk 0:02:35.2]} 15. Bxg5 {[%clk 0:02:16.4]}
15... Nh7 {[%clk 0:02:31.8]} 16. Bxe7 {[%clk 0:02:16.1]} 16... Qxe7 {[%clk
0:02:32.7]} 17. f4 {[%clk 0:02:09.7]} 17... Nc4 {[%clk 0:02:31.1]} 18. Bxc4
{[%clk 0:02:08.9]} 18... Rxc4 {[%clk 0:02:30.9]} 19. h6 {[%clk 0:01:57.4]} 19...
g6 {[%clk 0:02:30.4]} 20. f5 {[%clk 0:01:45.7]} 20... Rfc8 {[%clk 0:02:05.5]}
21. Rhg1 {[%clk 0:01:30.2]} 21... g5 {[%clk 0:01:57.5]} 22. Nf3 {[%clk
0:01:16.4]} 22... f6 {[%clk 0:01:53.9]} 23. Qxd6 {[%clk 0:01:13.6]} 23... Qxd6
{[%clk 0:01:43.9]} 24. Rxd6 {[%clk 0:01:14.5]} 24... Nf8 {[%clk 0:01:39.1]} 25.
e5 {[%clk 0:00:37.2]} 25... exf5 {[%clk 0:01:24.5]} 26. exf6 {[%clk 0:00:32.1]}
26... g4 {[%clk 0:01:03.6]} 27. Ne5 {[%clk 0:00:31.7]} 27... R4c7 {[%clk
0:01:01.3]} 28. Nd5 {[%clk 0:00:31.3]} 28... Rxc2+ {[%clk 0:01:01.3]} 29. Kb1
{[%clk 0:00:30.3]} 29... Rh2 {[%clk 0:00:13.6]} 30. Ne7+ {[%clk 0:00:28.7]}
30... Kh8 {[%clk 0:00:13.6]} 31. Nxc8 {[%clk 0:00:27]} 31... Bxc8 {[%clk
0:00:14.5]} 32. Rd8 {[%clk 0:00:26.6]} 1-0

[Event "*** Titled Tuesday Blitz"]
[Site "Chess.com"]
[Date "2021.03.02"]
[Round "3"]
[White "SergeyShtyka"]
[Black "chesslh19"]
[Result "1-0"]
[WhiteElo "2459"]
[BlackElo "2244"]
[TimeControl "180+1"]
[EndTime "10:27:51 PST"]
[Termination "SergeyShtyka won on time"]

1. e4 {[%clk 0:03:00.9]} 1... e5 {[%clk 0:02:53.3]} 2. Nf3 {[%clk 0:02:59.9]}
2... Nf6 {[%clk 0:02:53.9]} 3. Nc3 {[%clk 0:03:00.1]} 3... Nc6 {[%clk
0:02:52.4]} 4. Bb5 {[%clk 0:03:00]} 4... Bb4 {[%clk 0:02:52.1]} 5. O-O {[%clk
0:02:59.8]} 5... O-O {[%clk 0:02:52.6]} 6. d3 {[%clk 0:02:59.5]} 6... d6 {[%clk
0:02:53.3]} 7. Bxc6 {[%clk 0:02:59.9]} 7... bxc6 {[%clk 0:02:52.5]} 8. Bg5
{[%clk 0:02:59.8]} 8... Bxc3 {[%clk 0:02:50.9]} 9. bxc3 {[%clk 0:02:59.7]} 9...
Bg4 {[%clk 0:02:43.9]} 10. h3 {[%clk 0:02:59.5]} 10... Bh5 {[%clk 0:02:42.9]}
11. g4 {[%clk 0:02:58.9]} 11... Bg6 {[%clk 0:02:40.7]} 12. Rb1 {[%clk
0:02:59.3]} 12... Qe7 {[%clk 0:02:32.1]} 13. Rb7 {[%clk 0:02:54.8]} 13... Rfb8
{[%clk 0:02:31.7]} 14. Qb1 {[%clk 0:02:54]} 14... Qd8 {[%clk 0:02:19.7]} 15.
Bxf6 {[%clk 0:02:49.9]} 15... gxf6 {[%clk 0:02:19.1]} 16. Rb3 {[%clk 0:02:41.9]}
16... Rb6 {[%clk 0:02:12.2]} 17. Qc1 {[%clk 0:02:37.4]} 17... Rab8 {[%clk
0:02:05.4]} 18. Qa3 {[%clk 0:02:36.2]} 18... Qc8 {[%clk 0:01:51.2]} 19. Rfb1
{[%clk 0:02:26.5]} 19... Rxb3 {[%clk 0:01:32.1]} 20. axb3 {[%clk 0:02:24.9]}
20... h5 {[%clk 0:01:29.4]} 21. Nh2 {[%clk 0:02:20.5]} 21... Kg7 {[%clk
0:01:04.8]} 22. Ra1 {[%clk 0:02:13.3]} 22... Rb7 {[%clk 0:00:56.8]} 23. Qa4
{[%clk 0:02:10.9]} 23... Rb6 {[%clk 0:00:33.2]} 24. Qxa7 {[%clk 0:02:07.1]}
24... d5 {[%clk 0:00:30.2]} 25. f3 {[%clk 0:02:00.1]} 25... hxg4 {[%clk
0:00:25.9]} 26. hxg4 {[%clk 0:01:58.7]} 26... Bh7 {[%clk 0:00:17.9]} 27. Qa3
{[%clk 0:01:49.2]} 27... Bg8 {[%clk 0:00:10.7]} 28. Qe7 {[%clk 0:01:46.9]} 28...
Rb8 {[%clk 0:00:05.8]} 29. Kf2 {[%clk 0:01:42.4]} 29... Ra8 {[%clk 0:00:04.8]}
30. Rxa8 {[%clk 0:01:23]} 30... Qxa8 {[%clk 0:00:04.9]} 31. Nf1 {[%clk
0:01:21.2]} 31... Qa7+ {[%clk 0:00:04.6]} 32. Ke2 {[%clk 0:01:17.8]} 32... dxe4
{[%clk 0:00:03.6]} 33. fxe4 {[%clk 0:01:14.3]} 33... Qa2 {[%clk 0:00:03.5]} 34.
Ne3 {[%clk 0:01:14.2]} 34... Bh7 {[%clk 0:00:02.4]} 35. g5 {[%clk 0:01:13.3]}
35... fxg5 {[%clk 0:00:01.9]} 36. Qxg5+ {[%clk 0:01:12.7]} 36... Kf8 {[%clk
0:00:02.3]} 37. Qxe5 {[%clk 0:01:08.1]} 37... Bg6 {[%clk 0:00:02.1]} 38. Qxc7
{[%clk 0:01:05.9]} 38... Bh5+ {[%clk 0:00:02]} 39. Kd2 {[%clk 0:01:06.2]} 39...
Qa1 {[%clk 0:00:01.2]} 40. Qd8+ {[%clk 0:01:03.1]} 1-0

[Event "*** Titled Tuesday Blitz"]
[Site "Chess.com"]
[Date "2021.03.02"]
[Round "3"]
[White "Chowman64"]
[Black "PSvidler"]
[Result "0-1"]
[WhiteElo "2612"]
[BlackElo "2919"]
[TimeControl "180+1"]
[EndTime "10:27:55 PST"]
[Termination "PSvidler won on time"]

1. Nf3 {[%clk 0:03:00.9]} 1... g6 {[%clk 0:02:59.1]} 2. c4 {[%clk 0:02:48.6]}
2... Bg7 {[%clk 0:02:57.6]} 3. Nc3 {[%clk 0:02:47.6]} 3... c5 {[%clk 0:02:53.3]}
4. g3 {[%clk 0:02:33.4]} 4... Nc6 {[%clk 0:02:52.9]} 5. Bg2 {[%clk 0:02:33.6]}
5... d6 {[%clk 0:02:45.1]} 6. d3 {[%clk 0:02:33.3]} 6... Nf6 {[%clk 0:02:35.1]}
7. Rb1 {[%clk 0:02:24.7]} 7... O-O {[%clk 0:02:34.7]} 8. O-O {[%clk 0:02:23.5]}
8... d5 {[%clk 0:02:26.1]} 9. cxd5 {[%clk 0:02:20.6]} 9... Nxd5 {[%clk
0:02:25.8]} 10. Bd2 {[%clk 0:02:20.1]} 10... b6 {[%clk 0:01:59.2]} 11. a3 {[%clk
0:01:37.9]} 11... Nxc3 {[%clk 0:01:39.3]} 12. Bxc3 {[%clk 0:01:36.5]} 12... Bxc3
{[%clk 0:01:32.6]} 13. bxc3 {[%clk 0:01:36.6]} 13... Bb7 {[%clk 0:01:29]} 14.
Qc1 {[%clk 0:01:35.1]} 14... Kg7 {[%clk 0:01:25.8]} 15. Rd1 {[%clk 0:01:34.8]}
15... Rc8 {[%clk 0:01:24.2]} 16. Qb2 {[%clk 0:01:33.6]} 16... Na5 {[%clk
0:01:21.7]} 17. h4 {[%clk 0:01:27.9]} 17... Qd6 {[%clk 0:01:16.5]} 18. h5 {[%clk
0:01:24.7]} 18... Rfd8 {[%clk 0:01:02.7]} 19. Qc1 {[%clk 0:01:12.1]} 19... Bxf3
{[%clk 0:01:00]} 20. Bxf3 {[%clk 0:01:11.3]} 20... Qf6 {[%clk 0:00:59.7]} 21.
h6+ {[%clk 0:01:00]} 21... Kf8 {[%clk 0:00:58.2]} 22. Kg2 {[%clk 0:01:00.3]}
22... Nc6 {[%clk 0:00:55.8]} 23. Rh1 {[%clk 0:00:17.4]} 23... Ne5 {[%clk
0:00:54.7]} 24. Be4 {[%clk 0:00:13.2]} 24... Ng4 {[%clk 0:00:46.7]} 25. Bf3
{[%clk 0:00:13.1]} 25... Ne5 {[%clk 0:00:46.4]} 26. Be4 {[%clk 0:00:13.4]} 26...
e6 {[%clk 0:00:42.5]} 27. Rh4 {[%clk 0:00:12.4]} 27... Nd7 {[%clk 0:00:35.7]}
28. c4 {[%clk 0:00:08.2]} 28... Qe5 {[%clk 0:00:35.1]} 29. Rf4 {[%clk
0:00:05.6]} 29... Nf6 {[%clk 0:00:34.1]} 0-1

[Event "*** Titled Tuesday Blitz"]
[Site "Chess.com"]
[Date "2021.03.02"]
[Round "3"]
[White "TeukkaSalama"]
[Black "AliKa2810"]
[Result "1/2-1/2"]
[WhiteElo "2373"]
[BlackElo "2547"]
[TimeControl "180+1"]
[EndTime "10:27:55 PST"]
[Termination "Game drawn by repetition"]

1. d4 {[%clk 0:03:00.9]} 1... Nf6 {[%clk 0:02:58.9]} 2. Bg5 {[%clk 0:03:00.9]}
2... d5 {[%clk 0:02:57.3]} 3. Bxf6 {[%clk 0:03:00.6]} 3... gxf6 {[%clk
0:02:58.2]} 4. e3 {[%clk 0:03:01.2]} 4... c5 {[%clk 0:02:58.1]} 5. dxc5 {[%clk
0:02:56.4]} 5... Nc6 {[%clk 0:02:58]} 6. Nc3 {[%clk 0:02:55.9]} 6... e6 {[%clk
0:02:57.6]} 7. Qh5 {[%clk 0:02:55]} 7... Bxc5 {[%clk 0:02:57.5]} 8. O-O-O {[%clk
0:02:52.6]} 8... Qe7 {[%clk 0:02:57]} 9. Nf3 {[%clk 0:02:38.5]} 9... Bd7 {[%clk
0:02:55.4]} 10. Bb5 {[%clk 0:02:28.8]} 10... O-O-O {[%clk 0:02:54]} 11. Kb1
{[%clk 0:02:22.8]} 11... Kb8 {[%clk 0:02:53.4]} 12. e4 {[%clk 0:02:14.7]} 12...
d4 {[%clk 0:02:10.1]} 13. Na4 {[%clk 0:02:14.1]} 13... Bd6 {[%clk 0:02:03]} 14.
Nxd4 {[%clk 0:01:27.5]} 14... Nxd4 {[%clk 0:02:01.9]} 15. Rxd4 {[%clk
0:01:28.4]} 15... Be5 {[%clk 0:01:52.4]} 16. Rxd7 {[%clk 0:01:19]} 16... Rxd7
{[%clk 0:01:51.4]} 17. Bxd7 {[%clk 0:01:18.9]} 17... Qxd7 {[%clk 0:01:51.3]} 18.
Nc5 {[%clk 0:00:48.9]} 18... Qc6 {[%clk 0:01:35.7]} 19. Nd3 {[%clk 0:00:47.8]}
19... Bd4 {[%clk 0:01:30.1]} 20. f3 {[%clk 0:00:30.9]} 20... Rc8 {[%clk
0:01:29.1]} 21. c3 {[%clk 0:00:19.8]} 21... Bxc3 {[%clk 0:01:27.7]} 22. bxc3
{[%clk 0:00:20.7]} 22... Qxc3 {[%clk 0:01:26.4]} 23. Qb5 {[%clk 0:00:20]} 23...
Qc2+ {[%clk 0:00:55.6]} 24. Ka1 {[%clk 0:00:19.5]} 24... Rc3 {[%clk 0:00:55.3]}
25. Rc1 {[%clk 0:00:10.7]} 25... Qxd3 {[%clk 0:00:53.7]} 26. Qe8+ {[%clk
0:00:08.6]} 26... Kc7 {[%clk 0:00:53.9]} 27. Qxf7+ {[%clk 0:00:08.7]} 27... Kd6
{[%clk 0:00:41.5]} 28. Qf8+ {[%clk 0:00:07.4]} 28... Kd7 {[%clk 0:00:33.2]} 29.
Qf7+ {[%clk 0:00:05.9]} 29... Kd6 {[%clk 0:00:33.2]} 30. Qf8+ {[%clk 0:00:05]}
30... Kd7 {[%clk 0:00:33.4]} 31. Qf7+ {[%clk 0:00:04.8]} 31... Kd6 {[%clk
0:00:32.9]} 1/2-1/2

[Event "*** Titled Tuesday Blitz"]
[Site "Chess.com"]
[Date "2021.03.02"]
[Round "3"]
[White "Misha_Bilous"]
[Black "chessprincesa1"]
[Result "1-0"]
[WhiteElo "2508"]
[BlackElo "2237"]
[TimeControl "180+1"]
[EndTime "10:28:00 PST"]
[Termination "Misha_Bilous won by resignation"]

1. d4 {[%clk 0:02:50.2]} 1... Nf6 {[%clk 0:02:57.9]} 2. c4 {[%clk 0:02:50.5]}
2... d5 {[%clk 0:02:51.3]} 3. cxd5 {[%clk 0:02:50.1]} 3... Nxd5 {[%clk
0:02:49.1]} 4. e4 {[%clk 0:02:50.6]} 4... Nf6 {[%clk 0:02:48.7]} 5. Nc3 {[%clk
0:02:51.1]} 5... e6 {[%clk 0:02:40.7]} 6. Bg5 {[%clk 0:02:51.1]} 6... h6 {[%clk
0:02:39.1]} 7. Bh4 {[%clk 0:02:50.4]} 7... Be7 {[%clk 0:02:38.3]} 8. Nf3 {[%clk
0:02:50.6]} 8... O-O {[%clk 0:02:38.7]} 9. Be2 {[%clk 0:02:50.2]} 9... c5 {[%clk
0:02:35.9]} 10. d5 {[%clk 0:02:49.9]} 10... exd5 {[%clk 0:02:35.2]} 11. exd5
{[%clk 0:02:50.5]} 11... b6 {[%clk 0:02:29.7]} 12. O-O {[%clk 0:02:49.3]} 12...
Bb7 {[%clk 0:02:30]} 13. Bc4 {[%clk 0:02:47.6]} 13... Na6 {[%clk 0:02:04.1]} 14.
Ne5 {[%clk 0:02:40.4]} 14... Nb4 {[%clk 0:01:58.5]} 15. Re1 {[%clk 0:01:48.7]}
15... Nbxd5 {[%clk 0:01:43.9]} 16. Nxd5 {[%clk 0:01:40.9]} 16... Nxd5 {[%clk
0:00:43.7]} 17. Bxe7 {[%clk 0:01:35.3]} 17... Nxe7 {[%clk 0:00:40.7]} 18. Qxd8
{[%clk 0:01:32.4]} 18... Raxd8 {[%clk 0:00:40.4]} 19. Nxf7 {[%clk 0:01:32.5]}
19... Bd5 {[%clk 0:00:15.7]} 20. Nxd8 {[%clk 0:01:24.3]} 20... Bxc4 {[%clk
0:00:14.9]} 21. Rxe7 {[%clk 0:01:21.9]} 21... Rxd8 {[%clk 0:00:15.3]} 22. Rxa7
{[%clk 0:01:21.5]} 22... Rd2 {[%clk 0:00:12]} 23. b3 {[%clk 0:01:20.9]} 23...
Be6 {[%clk 0:00:06.9]} 24. h3 {[%clk 0:01:20.8]} 24... Kh7 {[%clk 0:00:03.9]}
25. Rb7 {[%clk 0:01:20.5]} 25... Rd6 {[%clk 0:00:02.5]} 26. Re1 {[%clk
0:01:17.7]} 26... Kg6 {[%clk 0:00:02]} 27. Kh2 {[%clk 0:01:09]} 27... Kf6 {[%clk
0:00:02.5]} 28. Kg3 {[%clk 0:01:08.3]} 28... Bd7 {[%clk 0:00:02.8]} 29. Re4
{[%clk 0:00:57]} 29... b5 {[%clk 0:00:02.9]} 30. Rb8 {[%clk 0:00:45.6]} 30...
Kg6 {[%clk 0:00:02.4]} 31. Rd8 {[%clk 0:00:42.1]} 31... Rd3+ {[%clk 0:00:02.6]}
32. f3 {[%clk 0:00:40.2]} 32... Rd2 {[%clk 0:00:02.8]} 33. Re7 {[%clk 0:00:39]}
1-0